[Event "DVM U20 2019"]
[Site "Braunschweig"]
[Date "2019.12.28"]
[Round "4"]
[White "Schneider, Jana"]
[Black "Holinka, Henning"]
[Result "1-0"]
[ECO "B06"]
[WhiteElo "2210"]
[BlackElo "2233"]
[Annotator "NA"]
[PlyCount "83"]
[EventDate "2019.12.27"]
[EventType "team-tourn"]
[EventRounds "7"]
[EventCountry "GER"]
[SourceTitle "playchess.com"]
[Source "ChessBase"]
[SourceQuality "1"]
[WhiteTeam "SC Bavaria Regensburg"]
[BlackTeam "Hamburger SK"]
[TimeControl "40/5400+30:1800+30"]

1. e4 {[%emt 0:00:00]} g6 {[%emt 0:00:00]} 2. d4 {[%emt 0:00:00]} Bg7 {[%emt 0:00:00]} 3. Nc3 {[%emt 0:00:00]} d6 {[%emt 0:00:00]} 4. Be3 {[%emt 0:00:00]} a6 {[%emt 0:00:02]} 5. Qd2 {[%emt 0:00:06]} b5 {[%emt 0:00:31]} 6. h4 {[%emt 0:00:13]} Nf6 {[%emt 0:00:39]} 7. f3 {[%emt 0:00:09]} h6 {[%emt 0:04:02]} 8. O-O-O {[%emt 0:00:57]} Bb7 {[%emt 0:01:41]} 9. Nh3 {[%emt 0:03:25]} Nbd7 {[%emt 0:05:20]} 10. g4 {[%emt 0:10:14]} Rc8 {[%emt 0:05:54]} 11. g5 {[%emt 0:01:20]} hxg5 {[%emt 0:01:44]} 12. hxg5 {[%emt 0:01:41]} Nh5 {[%emt 0:02:02]} 13. Nf4 {[%emt 0:00:58]} Nxf4 {[%emt 0:02:16]} 14. Rxh8+ {[%emt 0:00:06]} Bxh8 {[%emt 0:00:07]} 15. Bxf4 {[%emt 0:00:06]} c5 {[%emt 0:01:28]} 16. dxc5 {[%emt 0:01:47]} Nxc5 {[%emt 0:09:54]} 17. Qh2 {[%emt 0:07:01]} Bxc3 {[%emt 0:07:10]} 18. bxc3 {[%emt 0:00:07]} Qa5 {[%emt 0:03:51]} 19. Qh8+ {[%emt 0:05:41]} Kd7 {[%emt 0:00:57]} 20. Bh3+ {[%emt 0:01:31]} Ne6 {[%emt 0:04:06]} 21. Bxe6+ {[%emt 0:00:18]} fxe6 {[%emt 0:02:22]} 22. Qg7 {[%emt 0:00:12]} Rc6 {[%emt 0:05:46]} 23. Be5 {[%emt 0:03:55]} Qa3+ {[%emt 0:24:07]} 24. Kb1 {[%emt 0:00:36]} Rb6 {[%emt 0:01:34]} 25. Bd4 {[%emt 0:09:49]} b4 {[%emt 0:03:45]} 26. c4 {[%emt 0:00:28]} Qxf3 {[%emt 0:03:07]} 27. Re1 {[%emt 0:01:52]} Rc6 {[%emt 0:02:44]} 28. Bf6 {[%emt 0:00:34]} Rxc4 {[%emt 0:03:33]} 29. Qxe7+ {[%emt 0:00:25]} Kc6 {[%emt 0:00:12]} 30. Qxe6 {[%emt 0:01:56]} Kb5 {[%emt 0:01:44]} 31. Qe8+ {[%emt 0:02:28]} Kc5 {[%emt 0:01:37]} 32. e5 {[%emt 0:09:04]} dxe5 {[%emt 0:02:47]} 33. Rxe5+ {[%emt 0:02:49]} Kb6 {[%emt 0:00:37]} 34. Qd8+ {[%emt 0:02:26]} Ka7 {[%emt 0:00:29]} 35. Re7 {[%emt 0:04:05]} Qf2 {[%emt 0:00:39]} 36. Qd3 {[%emt 0:00:43]} Qg1+ {[%emt 0:00:27]} 37. Kb2 {[%emt 0:00:07]} Qc5 {[%emt 0:00:12]} 38. Qxg6 {[%emt 0:02:57]} a5 {[%emt 0:00:50]} 39. Qd3 {[%emt 0:02:57]} a4 {[%emt 0:00:28]} 40. Rd7 {[%emt 0:00:42]} Ka6 {[%emt 0:00:30]} 41. Rd4 {[%emt 0:34:40]} Kb5 {[%emt 0:07:00] normal} 42. g6 {[%emt 0:00:00] normal} 1-0

[Event "DVM U20 2019"]
[Site "Braunschweig"]
[Date "2019.12.28"]
[Round "4"]
[White "Joeres, Stefan"]
[Black "Hoffmann, Jens"]
[Result "0-1"]
[ECO "B90"]
[WhiteElo "2201"]
[BlackElo "2113"]
[Annotator "NA"]
[PlyCount "44"]
[EventDate "2019.12.27"]
[EventType "team-tourn"]
[EventRounds "7"]
[EventCountry "GER"]
[SourceTitle "playchess.com"]
[Source "ChessBase"]
[SourceQuality "1"]
[WhiteTeam "Karlsruher SF"]
[BlackTeam "SF HN-Biberach"]
[TimeControl "40/5400+30:1800+30"]

1. e4 {[%emt 0:00:00]} c5 {[%emt 0:00:00]} 2. Nf3 {[%emt 0:00:00]} d6 {[%emt 0:00:00]} 3. d4 {[%emt 0:00:00]} cxd4 {[%emt 0:00:00]} 4. Nxd4 {[%emt 0:00:00]} Nf6 {[%emt 0:00:00]} 5. Nc3 {[%emt 0:00:00]} a6 {[%emt 0:00:00]} 6. a3 {[%emt 0:01:53]} e5 {[%emt 0:00:55]} 7. Nf5 {[%emt 0:00:25]} d5 {[%emt 0:00:26]} 8. Bg5 {[%emt 0:00:17]} d4 {[%emt 0:01:40]} 9. Bxf6 {[%emt 0:00:01]} gxf6 {[%emt 0:01:08]} 10. Na2 {[%emt 0:00:36]} Bxf5 {[%emt 0:08:59]} 11. exf5 {[%emt 0:00:35]} Qd5 {[%emt 0:09:13]} 12. Be2 {[%emt 0:00:15]} e4 {[%emt 0:00:21]} 13. O-O {[%emt 0:14:39]} Nc6 {[%emt 0:06:21]} 14. Nc3 {[%emt 0:08:07]} Qe5 {[%emt 0:08:57]} 15. f4 {[%emt 0:19:37]} exf3 {[%emt 0:17:03]} 16. Bxf3 {[%emt 0:00:24]} O-O-O {[%emt 0:00:24]} 17. Ne4 {[%emt 0:03:31]} Kb8 {[%emt 0:01:47]} 18. Qd3 {[%emt 0:03:51]} Bh6 {[%emt 0:04:24]} 19. Qc4 {[%emt 0:05:20]} Bf4 {[%emt 0:11:53]} 20. g3 {[%emt 0:04:48]} Be3+ {[%emt 0:00:15]} 21. Kg2 {[%emt 0:00:24]} Qe7 {[%emt 0:25:58]} 22. Nc5 {[%emt 0:08:44]} Rc8 {[%emt 0:00:02] normal} 0-1

[Event "DVM U20 2019"]
[Site "Braunschweig"]
[Date "2019.12.28"]
[Round "4"]
[White "Stelmaszyk, Nico"]
[Black "Knudsen, Simon"]
[Result "0-1"]
[ECO "B06"]
[WhiteElo "2193"]
[BlackElo "2194"]
[Annotator "NA"]
[PlyCount "98"]
[EventDate "2019.12.27"]
[EventType "team-tourn"]
[EventRounds "7"]
[EventCountry "GER"]
[SourceTitle "playchess.com"]
[Source "ChessBase"]
[SourceQuality "1"]
[WhiteTeam "SK Lehrte 1919"]
[BlackTeam "SF Brackel"]
[TimeControl "40/5400+30:1800+30"]

1. e4 {[%emt 0:00:00]} g6 {[%emt 0:00:00]} 2. d4 {[%emt 0:00:00]} Bg7 {[%emt 0:00:00]} 3. Nc3 {[%emt 0:00:00]} d6 {[%emt 0:00:00]} 4. f4 {[%emt 0:00:00]} a6 {[%emt 0:00:00]} 5. Nf3 {[%emt 0:00:00]} b5 {[%emt 0:00:00]} 6. Bd3 {[%emt 0:00:01]} Nd7 {[%emt 0:00:00]} 7. e5 {[%emt 0:00:06]} c5 {[%emt 0:00:00]} 8. Be4 {[%emt 0:00:05]} Rb8 {[%emt 0:00:02]} 9. O-O {[%emt 0:00:08]} cxd4 {[%emt 0:00:05]} 10. Nxd4 {[%emt 0:00:07]} dxe5 {[%emt 0:00:04]} 11. Nc6 {[%emt 0:00:12]} Qb6+ {[%emt 0:00:04]} 12. Kh1 {[%emt 0:00:03]} Ngf6 {[%emt 0:00:08]} 13. Nxb8 {[%emt 0:00:06]} Qxb8 {[%emt 0:00:16]} 14. fxe5 {[%emt 0:00:06]} Nxe4 {[%emt 0:00:10]} 15. Nxe4 {[%emt 0:00:07]} Nxe5 {[%emt 0:00:10]} 16. Bf4 {[%emt 0:00:34]} Qb6 {[%emt 0:00:05]} 17. Qe2 {[%emt 0:13:38]} O-O {[%emt 0:05:35]} 18. Nc3 {[%emt 0:05:29]} Bg4 {[%emt 0:05:29]} 19. Qe1 {[%emt 0:03:34]} Qc5 {[%emt 0:00:25]} 20. Qh4 {[%emt 0:06:56]} Bf5 {[%emt 0:02:37]} 21. Rae1 {[%emt 0:23:17]} Nc6 {[%emt 0:04:24]} 22. Be3 {[%emt 0:11:18]} Qd6 {[%emt 0:01:14]} 23. Re2 {[%emt 0:12:58]} Be6 {[%emt 0:20:02]} 24. Ne4 {[%emt 0:02:14]} Qb4 {[%emt 0:00:15]} 25. Rf4 {[%emt 0:08:22]} Bc4 {[%emt 0:03:38]} 26. c3 {[%emt 0:03:12]} Qa5 27. b4 {[%emt 0:02:00]} Qa3 {[%emt 0:02:48]} 28. Rc2 {[%emt 0:02:52]} Nxb4 {[%emt 0:08:39]} 29. Bc1 {[%emt 0:03:16]} Qa4 {[%emt 0:00:07]} 30. Rd2 {[%emt 0:01:47]} Nd3 {[%emt 0:02:09]} 31. Rxd3 {[%emt 0:01:03]} Bxd3 {[%emt 0:00:05]} 32. Nf6+ {[%emt 0:00:54]} Bxf6 {[%emt 0:00:06]} 33. Rxa4 {[%emt 0:00:05]} Bxh4 {[%emt 0:00:05]} 34. Rxh4 {[%emt 0:00:05]} Bc4 {[%emt 0:00:06]} 35. a4 {[%emt 0:01:09]} Rd8 {[%emt 0:00:12]} 36. Rd4 {[%emt 0:00:48]} Rxd4 {[%emt 0:00:20]} 37. cxd4 {[%emt 0:00:05]} bxa4 {[%emt 0:00:06]} 38. Kg1 {[%emt 0:00:47]} Kg7 {[%emt 0:00:14]} 39. Kf2 {[%emt 0:00:54]} Kf6 {[%emt 0:00:42]} 40. Ba3 {[%emt 0:00:33]} Bd5 {[%emt 0:01:18]} 41. g3 {[%emt 0:01:13]} e6 {[%emt 0:00:08]} 42. Ke3 {[%emt 0:01:45]} Kf5 {[%emt 0:00:35]} 43. Be7 {[%emt 0:01:45]} Kg4 {[%emt 0:00:18]} 44. Kf2 {[%emt 0:00:23]} Kh3 {[%emt 0:01:18]} 45. Kg1 {[%emt 0:00:08]} h6 {[%emt 0:00:25]} 46. Bf8 {[%emt 0:00:20]} g5 {[%emt 0:00:15]} 47. Be7 {[%emt 0:00:16]} f6 {[%emt 0:00:07]} 48. Bd6 {[%emt 0:00:13]} h5 {[%emt 0:00:23]} 49. Ba3 {[%emt 0:00:40]} h4 {[%emt 0:00:14] normal} 0-1

[Event "DVM U20 2019"]
[Site "Braunschweig"]
[Date "2019.12.28"]
[Round "4"]
[White "Fluechter, Gregor"]
[Black "Meiwes, Thore"]
[Result "1/2-1/2"]
[ECO "C15"]
[WhiteElo "2174"]
[BlackElo "2106"]
[Annotator "NA"]
[PlyCount "109"]
[EventDate "2019.12.27"]
[EventType "team-tourn"]
[EventRounds "7"]
[EventCountry "GER"]
[SourceTitle "playchess.com"]
[Source "ChessBase"]
[SourceQuality "1"]
[WhiteTeam "SF Brackel"]
[BlackTeam "SK Lehrte 1919"]
[TimeControl "40/5400+30:1800+30"]

1. e4 {[%emt 0:00:00]} e6 {[%emt 0:00:00]} 2. d4 {[%emt 0:00:00]} d5 {[%emt 0:00:00]} 3. Nc3 {[%emt 0:00:00]} Bb4 {[%emt 0:00:03]} 4. a3 {[%emt 0:00:01]} Bxc3+ {[%emt 0:00:17]} 5. bxc3 {[%emt 0:00:07]} dxe4 {[%emt 0:00:32]} 6. Qg4 {[%emt 0:00:09]} Qf6 {[%emt 0:03:23]} 7. Qxe4 {[%emt 0:00:15]} Ne7 {[%emt 0:02:37]} 8. Nf3 {[%emt 0:02:23]} Qf5 {[%emt 0:04:24]} 9. Bd3 {[%emt 0:03:23]} Qxe4+ {[%emt 0:00:44]} 10. Bxe4 {[%emt 0:00:03]} Nd5 {[%emt 0:03:40]} 11. c4 {[%emt 0:02:01]} Nf6 {[%emt 0:00:15]} 12. Bd3 {[%emt 0:00:18]} c5 {[%emt 0:01:57]} 13. dxc5 {[%emt 0:21:30]} Na6 {[%emt 0:03:42]} 14. Be3 {[%emt 0:01:09]} Nd7 {[%emt 0:02:02]} 15. c6 {[%emt 0:39:40]} bxc6 {[%emt 0:00:05]} 16. Nd4 {[%emt 0:01:24]} Ne5 {[%emt 0:11:16]} 17. Be4 {[%emt 0:04:46]} Bd7 {[%emt 0:00:14]} 18. Bf4 {[%emt 0:00:51]} Nc5 {[%emt 0:03:28]} 19. Bxe5 {[%emt 0:02:35]} Nxe4 {[%emt 0:00:16]} 20. Bxg7 {[%emt 0:02:52]} Rg8 {[%emt 0:00:07]} 21. Be5 {[%emt 0:00:20]} f6 {[%emt 0:01:06]} 22. Bg3 {[%emt 0:00:42]} e5 {[%emt 0:02:23]} 23. Nb3 {[%emt 0:01:26]} Be6 {[%emt 0:00:53]} 24. O-O-O {[%emt 0:07:02]} Bxc4 {[%emt 0:04:30]} 25. f3 {[%emt 0:04:05]} Nc3 {[%emt 0:11:29]} 26. Rd6 {[%emt 0:00:58]} Ke7 {[%emt 0:00:12]} 27. Rxc6 {[%emt 0:00:21]} Rgc8 {[%emt 0:00:14]} 28. Rxc8 {[%emt 0:00:43]} Rxc8 {[%emt 0:00:05]} 29. Kd2 {[%emt 0:01:45]} Nb5 {[%emt 0:01:05]} 30. Bf2 {[%emt 0:01:33]} Rd8+ {[%emt 0:03:33]} 31. Kc1 {[%emt 0:00:10]} Kf7 {[%emt 0:00:22]} 32. Rd1 {[%emt 0:00:58]} Rxd1+ {[%emt 0:02:23]} 33. Kxd1 {[%emt 0:00:01]} Bf1 {[%emt 0:01:31]} 34. g3 {[%emt 0:00:12]} Bg2 {[%emt 0:01:13]} 35. Nd2 {[%emt 0:00:47]} Nxa3 {[%emt 0:02:29]} 36. Bxa7 {[%emt 0:00:07]} Nb5 {[%emt 0:00:16]} 37. Be3 {[%emt 0:00:40]} Bh3 {[%emt 0:01:09]} 38. c4 {[%emt 0:01:44]} Nd6 {[%emt 0:00:40]} 39. Kc2 {[%emt 0:00:34]} Bd7 {[%emt 0:01:04]} 40. Kc3 {[%emt 0:00:41]} Bc6 {[%emt 0:00:09]} 41. Kb4 {[%emt 0:02:28]} Ke6 {[%emt 0:00:55]} 42. Bf2 {[%emt 0:11:49]} Kd7 {[%emt 0:00:24]} 43. c5 {[%emt 0:00:26]} Nb7 {[%emt 0:01:09]} 44. Kc4 {[%emt 0:01:57]} f5 {[%emt 0:01:43]} 45. g4 {[%emt 0:02:16]} Ke6 {[%emt 0:01:11]} 46. gxf5+ {[%emt 0:00:36]} Kxf5 {[%emt 0:00:02]} 47. Bg3 {[%emt 0:00:23]} h5 {[%emt 0:02:02]} 48. Ne4 {[%emt 0:07:56]} Nd8 {[%emt 0:23:34]} 49. Nd6+ {[%emt 0:01:38]} Ke6 {[%emt 0:00:17]} 50. f4 {[%emt 0:01:06]} exf4 {[%emt 0:00:16]} 51. Bxf4 {[%emt 0:00:01]} Kd7 {[%emt 0:01:01]} 52. Be3 {[%emt 0:01:45]} Ne6 {[%emt 0:03:12]} 53. h4 {[%emt 0:00:33]} Nc7 {[%emt 0:00:59]} 54. Nf5 {[%emt 0:00:53] normal} Bf3 {[%emt 0:01:46] normal} 55. Kd4 {[%emt 0:02:04] normal} 1/2-1/2

[Event "DVM U20 2019"]
[Site "Braunschweig"]
[Date "2019.12.28"]
[Round "4"]
[White "Schimnatkowski, Lukas"]
[Black "Biastoch, Bennet"]
[Result "0-1"]
[ECO "B23"]
[WhiteElo "2157"]
[BlackElo "2242"]
[Annotator "NA"]
[PlyCount "76"]
[EventDate "2019.12.27"]
[EventType "team-tourn"]
[EventRounds "7"]
[EventCountry "GER"]
[SourceTitle "playchess.com"]
[Source "ChessBase"]
[SourceQuality "1"]
[WhiteTeam "SF Essen-Katernberg"]
[BlackTeam "SG Aufbau Elbe Magdeburg"]
[TimeControl "40/5400+30:1800+30"]

1. e4 {[%emt 0:00:00]} c5 {[%emt 0:00:00]} 2. Nc3 {[%emt 0:00:00]} Nc6 {[%emt 0:00:08]} 3. f4 {[%emt 0:00:08]} g6 {[%emt 0:00:49]} 4. Nf3 {[%emt 0:00:05]} Bg7 {[%emt 0:00:24]} 5. a3 {[%emt 0:00:06]} d6 {[%emt 0:06:13]} 6. Bc4 {[%emt 0:00:56]} e6 {[%emt 0:00:53]} 7. d3 {[%emt 0:02:17]} Nge7 {[%emt 0:01:23]} 8. O-O {[%emt 0:00:34]} O-O {[%emt 0:01:05]} 9. Ba2 {[%emt 0:02:20]} d5 {[%emt 0:10:17]} 10. Qe1 {[%emt 0:12:40]} Nd4 {[%emt 0:07:23]} 11. Qf2 {[%emt 0:04:21]} Nxf3+ {[%emt 0:08:12]} 12. Qxf3 {[%emt 0:00:24]} b6 {[%emt 0:00:48]} 13. Rd1 {[%emt 0:14:43]} Bb7 {[%emt 0:00:49]} 14. Bd2 {[%emt 0:05:09]} dxe4 {[%emt 0:12:49]} 15. dxe4 {[%emt 0:00:12]} Qc7 {[%emt 0:00:18]} 16. Bc4 {[%emt 0:17:42]} a6 {[%emt 0:02:38]} 17. Be3 {[%emt 0:04:34]} Nf5 {[%emt 0:04:19]} 18. Bf2 {[%emt 0:00:10]} Nd4 {[%emt 0:00:50]} 19. Qg4 {[%emt 0:02:22]} b5 {[%emt 0:07:18]} 20. Bd3 {[%emt 0:03:19]} f5 {[%emt 0:05:40]} 21. Qg5 {[%emt 0:08:52]} fxe4 {[%emt 0:04:12]} 22. Bxe4 {[%emt 0:02:58]} Bxe4 {[%emt 0:00:29]} 23. Nxe4 {[%emt 0:00:04]} Rf5 {[%emt 0:00:10]} 24. Qg4 {[%emt 0:10:15]} Rxf4 {[%emt 0:00:34]} 25. Bg3 {[%emt 0:03:33]} Rxg4 {[%emt 0:00:32]} 26. Bxc7 {[%emt 0:00:03]} Rxe4 {[%emt 0:00:17]} 27. c3 {[%emt 0:00:08]} Nb3 {[%emt 0:06:25]} 28. Rab1 {[%emt 0:00:22]} Be5 {[%emt 0:01:05]} 29. Rd7 {[%emt 0:01:36]} Ra7 {[%emt 0:05:15]} 30. Rd8+ {[%emt 0:00:34]} Kf7 {[%emt 0:00:19]} 31. Bxe5 {[%emt 0:01:42]} Rxe5 {[%emt 0:00:06]} 32. Rbd1 {[%emt 0:00:03]} Rd5 {[%emt 0:01:24]} 33. R1xd5 {[%emt 0:00:52]} exd5 {[%emt 0:00:05]} 34. Rxd5 {[%emt 0:00:04]} Ke6 {[%emt 0:00:14]} 35. Rd8 {[%emt 0:00:07]} Rd7 {[%emt 0:02:13]} 36. Re8+ {[%emt 0:00:43]} Kf5 {[%emt 0:01:32]} 37. Re2 {[%emt 0:00:05]} Rd1+ {[%emt 0:00:30]} 38. Kf2 {[%emt 0:00:05]} Rd2 {[%emt 0:00:06] normal} 0-1

[Event "DVM U20 2019"]
[Site "Braunschweig"]
[Date "2019.12.28"]
[Round "4"]
[White "Doll, Alexander"]
[Black "Wendler, David"]
[Result "0-1"]
[ECO "B36"]
[WhiteElo "2127"]
[BlackElo "2204"]
[Annotator "NA"]
[PlyCount "107"]
[EventDate "2019.12.27"]
[EventType "team-tourn"]
[EventRounds "7"]
[EventCountry "GER"]
[SourceTitle "playchess.com"]
[Source "ChessBase"]
[SourceQuality "1"]
[WhiteTeam "OSG Baden-Baden"]
[BlackTeam "SK Bebenhausen"]
[TimeControl "40/5400+30:1800+30"]

1. e4 {[%emt 0:00:00]} c5 {[%emt 0:00:00]} 2. Nf3 {[%emt 0:00:00]} Nc6 {[%emt 0:00:00]} 3. d4 {[%emt 0:00:20]} cxd4 {[%emt 0:00:00]} 4. Nxd4 {[%emt 0:00:03]} g6 {[%emt 0:00:09]} 5. c4 {[%emt 0:00:25]} Nf6 {[%emt 0:00:11]} 6. Nc3 {[%emt 0:00:09]} d6 {[%emt 0:00:11]} 7. Be2 {[%emt 0:00:05]} Nxd4 {[%emt 0:00:08]} 8. Qxd4 {[%emt 0:00:03]} Bg7 {[%emt 0:00:10]} 9. Be3 {[%emt 0:00:25]} O-O {[%emt 0:00:13]} 10. Qd2 {[%emt 0:00:07]} Be6 {[%emt 0:00:08]} 11. Rc1 {[%emt 0:00:45]} Qa5 {[%emt 0:00:19]} 12. O-O {[%emt 0:02:38]} Rfc8 {[%emt 0:00:11]} 13. b3 {[%emt 0:01:23]} a6 {[%emt 0:00:07]} 14. Nd5 {[%emt 0:05:18]} Qxd2 {[%emt 0:01:01]} 15. Nxf6+ {[%emt 0:00:08]} Bxf6 {[%emt 0:00:23]} 16. Bxd2 {[%emt 0:00:02]} b5 {[%emt 0:01:07]} 17. cxb5 {[%emt 0:00:33]} axb5 {[%emt 0:00:49]} 18. Rxc8+ {[%emt 0:01:14]} Bxc8 {[%emt 0:01:47]} 19. Rc1 {[%emt 0:01:07]} Bb7 {[%emt 0:06:23]} 20. Bxb5 {[%emt 0:02:40]} Rxa2 {[%emt 0:07:29]} 21. Bh6 {[%emt 0:02:58]} Bb2 {[%emt 0:04:28]} 22. Rc7 {[%emt 0:12:07]} Ra1+ {[%emt 0:01:11]} 23. Bf1 {[%emt 0:03:09]} Ba6 {[%emt 0:01:11]} 24. Bc1 {[%emt 0:00:07]} Bxc1 {[%emt 0:16:02]} 25. Bxa6 {[%emt 0:01:48]} Ba3+ {[%emt 0:04:53]} 26. Bf1 {[%emt 0:00:23]} Bc5 {[%emt 0:00:10]} 27. b4 {[%emt 0:02:09]} Bxb4 {[%emt 0:01:20]} 28. Rxe7 {[%emt 0:00:39]} Bc5 {[%emt 0:00:53]} 29. Rc7 {[%emt 0:03:35]} Rc1 {[%emt 0:00:55]} 30. Rd7 {[%emt 0:06:52]} Rc2 {[%emt 0:00:39]} 31. Kh1 {[%emt 0:05:07]} Rxf2 {[%emt 0:02:11]} 32. Bc4 {[%emt 0:01:06]} Kg7 {[%emt 0:05:40]} 33. g3 {[%emt 0:01:00]} g5 {[%emt 0:01:09]} 34. h4 {[%emt 0:03:39]} g4 {[%emt 0:04:04]} 35. h5 {[%emt 0:02:07]} Rf6 {[%emt 0:10:46]} 36. Kg2 {[%emt 0:01:39]} Bd4 {[%emt 0:02:01]} 37. Rb7 {[%emt 0:05:23]} Rf3 {[%emt 0:02:29]} 38. Rb3 {[%emt 0:01:35]} Rf2+ {[%emt 0:00:46]} 39. Kh1 {[%emt 0:00:17]} Be5 {[%emt 0:08:22]} 40. Kg1 {[%emt 0:04:21]} Rc2 {[%emt 0:00:16]} 41. Bd3 {[%emt 0:33:42]} Rc1+ {[%emt 0:31:23]} 42. Kf2 {[%emt 0:03:14]} Kh6 {[%emt 0:01:22]} 43. Rb7 {[%emt 0:01:26]} Kxh5 {[%emt 0:12:31]} 44. Rxf7 {[%emt 0:00:39]} Kg6 {[%emt 0:01:12]} 45. Rf8 {[%emt 0:07:20]} Rc3 {[%emt 0:00:24]} 46. Ke3 {[%emt 0:01:50]} h5 {[%emt 0:01:16]} 47. Rf1 {[%emt 0:02:00] normal} Bxg3 {[%emt 0:00:00]} 48. e5+ {[%emt 0:00:00] normal} Rxd3+ {[%emt 0:00:00]} 49. Kxd3 {[%emt 0:00:00]} Bxe5 {[%emt 0:00:00] normal} 50. Ke4 {[%emt 0:00:00]} h4 {[%emt 0:00:00]} 51. Rf8 {[%emt 0:00:00] normal} h3 {[%emt 0:00:00]} 52. Rg8+ {[%emt 0:00:00]} Kh5 {[%emt 0:00:00] normal} 53. Kf5 {[%emt 0:00:00] normal} h2 {[%emt 0:00:00]} 54. Rg7 {[%emt 0:00:00]} 0-1

[Event "DVM U20 2019"]
[Site "Braunschweig"]
[Date "2019.12.28"]
[Round "4"]
[White "Melde, Benjamin"]
[Black "Thomsen, Phil"]
[Result "1-0"]
[ECO "A20"]
[WhiteElo "2120"]
[BlackElo "2147"]
[Annotator "NA"]
[PlyCount "57"]
[EventDate "2019.12.27"]
[EventType "team-tourn"]
[EventRounds "7"]
[EventCountry "GER"]
[SourceTitle "playchess.com"]
[Source "ChessBase"]
[SourceQuality "1"]
[WhiteTeam "SK Turm Kleve"]
[BlackTeam "Sges Bensheim"]
[TimeControl "40/5400+30:1800+30"]

1. c4 {[%emt 0:00:00]} e5 {[%emt 0:00:00]} 2. g3 {[%emt 0:00:00]} c6 {[%emt 0:00:00]} 3. Nf3 {[%emt 0:00:00]} e4 {[%emt 0:00:09]} 4. Nd4 {[%emt 0:00:00]} d5 {[%emt 0:00:07]} 5. cxd5 {[%emt 0:00:00]} Qxd5 {[%emt 0:00:13]} 6. e3 {[%emt 0:16:09]} Nf6 {[%emt 0:02:25]} 7. Nc3 {[%emt 0:00:05]} Qe5 {[%emt 0:02:12]} 8. f4 {[%emt 0:02:00]} exf3 {[%emt 0:02:24]} 9. Nxf3 {[%emt 0:00:34]} Qh5 {[%emt 0:00:35]} 10. Bg2 {[%emt 0:00:28]} Bh3 {[%emt 0:03:01]} 11. O-O {[%emt 0:00:07]} Bxg2 {[%emt 0:01:21]} 12. Kxg2 {[%emt 0:00:02]} Nbd7 {[%emt 0:01:13]} 13. d4 {[%emt 0:00:06]} Bd6 {[%emt 0:07:55]} 14. e4 {[%emt 0:09:43]} Bc7 {[%emt 0:02:19]} 15. Qb3 {[%emt 0:00:11]} Nb6 {[%emt 0:13:41]} 16. a4 {[%emt 0:00:07]} Rb8 {[%emt 0:09:36]} 17. a5 {[%emt 0:44:14]} Nc8 {[%emt 0:03:17]} 18. e5 {[%emt 0:00:05]} Ng4 {[%emt 0:01:37]} 19. Nh4 {[%emt 0:03:20]} Ne7 {[%emt 0:03:24]} 20. h3 {[%emt 0:00:18]} Nh6 {[%emt 0:01:38]} 21. Bxh6 {[%emt 0:00:06]} gxh6 {[%emt 0:01:46]} 22. Kh2 {[%emt 0:05:07]} O-O {[%emt 0:09:39]} 23. Rf2 {[%emt 0:00:35]} Kh8 {[%emt 0:02:10]} 24. Raf1 {[%emt 0:02:27]} f5 {[%emt 0:03:30]} 25. Ne4 {[%emt 0:00:16]} Ng6 {[%emt 0:05:04]} 26. Nxf5 {[%emt 0:02:10]} Rxf5 {[%emt 0:01:19]} 27. Rxf5 {[%emt 0:00:13]} Qe2+ {[%emt 0:00:05]} 28. R5f2 {[%emt 0:01:00]} Qxe4 {[%emt 0:00:06]} 29. Qf7 {[%emt 0:02:00] normal} 1-0

[Event "DVM U20 2019"]
[Site "Braunschweig"]
[Date "2019.12.28"]
[Round "4"]
[White "Roehr, Tobias"]
[Black "Gorainow, Nikita"]
[Result "1-0"]
[ECO "D85"]
[WhiteElo "2103"]
[BlackElo "1946"]
[Annotator "NA"]
[PlyCount "73"]
[EventDate "2019.12.27"]
[EventType "team-tourn"]
[EventRounds "7"]
[EventCountry "GER"]
[SourceTitle "playchess.com"]
[Source "ChessBase"]
[SourceQuality "1"]
[WhiteTeam "SG Aufbau Elbe Magdeburg"]
[BlackTeam "SF Essen-Katernberg"]
[TimeControl "40/5400+30:1800+30"]

1. d4 {[%emt 0:00:00]} Nf6 {[%emt 0:00:00]} 2. c4 {[%emt 0:00:00]} g6 {[%emt 0:00:00]} 3. Nc3 {[%emt 0:00:00]} d5 {[%emt 0:00:00]} 4. cxd5 {[%emt 0:00:00]} Nxd5 {[%emt 0:00:00]} 5. Bd2 {[%emt 0:00:00]} Nb6 {[%emt 0:00:00]} 6. e3 {[%emt 0:06:49]} Bg7 {[%emt 0:00:33]} 7. Nf3 {[%emt 0:00:33]} O-O {[%emt 0:06:38]} 8. Be2 {[%emt 0:00:51]} N8d7 {[%emt 0:11:05]} 9. Qc2 {[%emt 0:04:20]} c5 {[%emt 0:06:46]} 10. O-O {[%emt 0:04:07]} cxd4 {[%emt 0:01:58]} 11. Nxd4 {[%emt 0:00:25]} Ne5 {[%emt 0:04:22]} 12. Rad1 {[%emt 0:05:23]} Bd7 {[%emt 0:06:09]} 13. Qe4 {[%emt 0:13:21]} Nc6 {[%emt 0:04:19]} 14. Nxc6 {[%emt 0:07:19]} Bxc6 {[%emt 0:00:17]} 15. Qc2 {[%emt 0:01:44]} Rc8 {[%emt 0:02:56]} 16. e4 {[%emt 0:05:02]} Qc7 {[%emt 0:07:21]} 17. Rc1 {[%emt 0:01:35]} Rfd8 {[%emt 0:06:00]} 18. Be3 {[%emt 0:02:33]} Qd7 {[%emt 0:19:03]} 19. h3 {[%emt 0:11:40]} e6 {[%emt 0:01:26]} 20. Bg5 {[%emt 0:02:18]} f6 {[%emt 0:01:42]} 21. Be3 {[%emt 0:01:34]} Ba4 {[%emt 0:04:04]} 22. Qb1 {[%emt 0:02:44]} Bc6 {[%emt 0:00:11]} 23. b4 {[%emt 0:04:23]} Qf7 {[%emt 0:04:23]} 24. Nb5 {[%emt 0:02:19]} Bxb5 {[%emt 0:01:43]} 25. Bxb5 {[%emt 0:00:06]} f5 {[%emt 0:03:08]} 26. Rxc8 {[%emt 0:03:32]} Nxc8 {[%emt 0:00:37]} 27. Rd1 {[%emt 0:04:34]} Qc7 {[%emt 0:03:56]} 28. Rxd8+ {[%emt 0:03:18]} Qxd8 {[%emt 0:00:04]} 29. Qb3 {[%emt 0:00:13]} Kf7 {[%emt 0:01:04]} 30. exf5 {[%emt 0:01:02]} gxf5 {[%emt 0:00:19]} 31. Bc4 {[%emt 0:02:30]} Qd7 {[%emt 0:00:39]} 32. Qc2 {[%emt 0:00:49]} Kg6 {[%emt 0:02:09]} 33. Qe2 {[%emt 0:04:01]} a6 {[%emt 0:00:45]} 34. Bf4 {[%emt 0:03:38]} Kf7 {[%emt 0:01:06]} 35. Qh5+ {[%emt 0:00:27]} Kg8 {[%emt 0:00:04] normal} 36. Qxf5 {[%emt 0:00:54] normal} Qd1+ {[%emt 0:02:06]} 37. Kh2 {[%emt 0:00:06] normal} 1-0